fUST/lending_fUST_20240417
["ID","MTS","AMOUNT","RATE_DAILY","PERIOD"]
[322803265,1713333042574,-500.0,0.00065753,120]
[322803266,1713333042584,-500.0,0.00065753,120]
[322803267,1713333042593,-500.0,0.00065753,120]
[322803268,1713333042604,-500.0,0.00065753,120]
[322803269,1713333042614,-500.0,0.00065753,120]
[322803270,1713333042623,-500.0,0.00065753,120]
[322803271,1713333042637,-500.0,0.00065753,120]
[322803272,1713333042646,-500.0,0.00065753,120]
[322803273,1713333042656,-524.70463778,0.00065753,120]
[322803274,1713333042665,-508.60372677,0.00065753,120]
[322803275,1713333042674,-500.0,0.00065753,120]
[322803276,1713333042685,-367.24879509,0.00065753,120]
[322803277,1713333042694,-500.0,0.00065753,120]
[322803278,1713333042703,-500.0,0.00065753,120]
[322803279,1713333042712,-500.0,0.00065753,120]
[322803280,1713333042723,-500.0,0.00065753,120]
[322803281,1713333042732,-531.62010606,0.00065753,120]
[322803283,1713333042743,-507.72751699,0.00065753,120]
[322803284,1713333042752,-500.0,0.00065753,120]
[322803285,1713333042762,-500.0,0.00065753,120]
[322803286,1713333042772,-500.0,0.00065753,120]
[322803287,1713333042782,-500.0,0.00065753,120]
[322803288,1713333042792,-503.03849627,0.00065753,120]
[322803290,1713333042802,-504.7251836,0.00065753,120]
[322803291,1713333042811,-502.97722861,0.00065753,120]
[322803292,1713333042820,-500.0,0.00065753,120]
[322803293,1713333042829,-500.0,0.00065753,120]
[322803294,1713333042839,-500.0,0.00065753,120]
[322803295,1713333042848,-500.0,0.00065753,120]
[322803297,1713333042858,-500.0,0.00065753,120]
[322803298,1713333042867,-500.0,0.00065753,120]
[322803299,1713333042876,-500.0,0.00065753,120]
[322803300,1713333042891,-579.09,0.00065753,120]
[322803301,1713333042900,-500.0,0.00065753,120]
[322803302,1713333042910,-500.0,0.00065753,120]
[322803304,1713333042919,-500.0,0.00065753,120]
[322803306,1713333042928,-500.0,0.00065753,120]
[322803308,1713333042937,-500.0,0.00065753,120]
[322803310,1713333042946,-488.61136021,0.00065753,120]
[322803312,1713333042955,-505.46589147,0.00065753,120]
[322803314,1713333042964,-500.0,0.00065753,120]
[322803317,1713333042974,-500.0,0.00065753,120]
[322803320,1713333042983,-502.97807799,0.00065753,120]
[322803323,1713333042992,-500.0,0.00065753,120]
[322803326,1713333043000,-501.37116801,0.00065753,120]
[322803328,1713333043008,-1749.94,0.00065753,120]
[322803331,1713333043017,-500.0,0.00065753,120]
[322803334,1713333043026,-500.0,0.00065753,120]
[322803335,1713333043035,-500.0,0.00065753,120]
[322803336,1713333043044,-500.0,0.00065753,120]
[322803337,1713333043054,-500.0,0.00065753,120]
[322803338,1713333043062,-500.0,0.00065753,120]
[322803339,1713333043071,-500.0,0.00065753,120]
[322803341,1713333043081,-500.0,0.00065753,120]
[322803342,1713333043090,-500.0,0.00065753,120]
[322803343,1713333043099,-1000.0,0.00065753,120]
[322803344,1713333043109,-500.0,0.00065753,120]
[322803345,1713333043118,-506.52750056,0.00065753,120]
[322803346,1713333043131,-500.0,0.00065753,120]
[322803347,1713333043140,-500.0,0.00065753,120]
[322803348,1713333043150,-458.94995704,0.00065753,120]
[322803349,1713333043159,-172.992695,0.00065753,120]
[322803350,1713333043168,-500.0,0.00065753,120]
[322803351,1713333043177,-172.992695,0.00065753,120]
[322803352,1713333043186,-500.0,0.00065753,120]
[322803353,1713333043195,-500.0,0.00065753,120]
[322803354,1713333043204,-500.0,0.00065753,120]
[322803355,1713333043214,-500.0,0.00065753,120]
[322803356,1713333043224,-500.0,0.00065753,120]
[322803357,1713333043233,-27989.2,0.00065753,120]
[322803358,1713333043242,-500.0,0.00065753,120]
[322803359,1713333043252,-583.93,0.00065753,120]
[322803360,1713333043261,-500.0,0.00065753,120]
[322803361,1713333043271,-500.0,0.00065753,120]
[322803362,1713333043280,-382.0,0.00065753,120]
[322803363,1713333043289,-500.0,0.00065753,120]
[322803364,1713333043298,-502.12973127,0.00065753,120]
[322803365,1713333043308,-502.29143836,0.00065753,120]
[322803366,1713333043317,-500.0,0.00065753,120]
[322803367,1713333043326,-504.7503752,0.00065753,120]
[322803368,1713333043335,-500.0,0.00065753,7]
[322803369,1713333043344,-503.89484957,0.00065753,120]
[322803370,1713333043354,-15701.23026736,0.00065753,120]
[322803376,1713333044026,-154.86062544,0.00020659,2]
[322803377,1713333044039,-1488.61335239,0.00020659,2]
[322803378,1713333044048,-188.96976676,0.00020659,2]
[322803379,1713333044058,-154.86062544,0.00020659,2]
[322803380,1713333044069,-161.84978394,0.00020659,2]
[322803381,1713333044078,-154.86062544,0.00020659,2]
[322803382,1713333044087,-154.86062544,0.00020659,2]
[322803383,1713333044098,-266.7220136,0.00020772,2]
[322803384,1713333044108,-500.0,0.00020772,2]
[322803385,1713333044118,-500.0,0.00020772,2]
[322803386,1713333044128,-265.39770589,0.00020772,2]
[322803387,1713333044138,-500.0,0.00020772,2]
[322803388,1713333044147,-500.0,0.00020772,2]
[322803389,1713333044156,-397.29018029,0.00020772,2]
[322803390,1713333044165,-500.0,0.00020772,2]
[322803391,1713333044177,-500.0,0.00020772,2]
[322803392,1713333044186,-500.0,0.00020772,2]
[322803393,1713333044196,-500.0,0.00020772,2]
[322803394,1713333044206,-500.0,0.00020772,2]
[322803395,1713333044215,-500.0,0.00020772,2]
[322803396,1713333044224,-500.0,0.00020772,2]
[322803397,1713333044234,-500.0,0.00020772,2]
[322803398,1713333044243,-443.72082677,0.00020772,2]
[322803399,1713333044254,-283.33062207,0.00020772,2]
[322803400,1713333044264,-1089.26071762,0.00027396,2]
[322803401,1713333044362,-500.0,0.00027397,2]
[322803402,1713333044372,-500.0,0.00027397,2]
[322803403,1713333044383,-500.0,0.00027397,2]
[322803404,1713333044392,-500.0,0.00027397,2]
[322803405,1713333044401,-500.0,0.00027397,2]
[322803406,1713333044410,-500.0,0.00027397,2]
[322803407,1713333044419,-500.0,0.00027397,2]
[322803408,1713333044428,-192.86632836,0.00027397,2]
[322803409,1713333044437,-500.0,0.00027397,2]
[322803410,1713333044447,-500.0,0.00027397,2]
[322803411,1713333044455,-500.0,0.00027397,2]
[322803412,1713333044465,-500.0,0.00027397,2]
[322803413,1713333044474,-500.0,0.00027397,2]
[322803414,1713333044483,-500.0,0.00027397,2]
[322803415,1713333044492,-500.0,0.00027397,2]
[322803416,1713333044502,-500.0,0.00027397,2]
[322803417,1713333044511,-500.0,0.00027397,2]
[322803418,1713333044520,-500.0,0.00027397,2]
[322803419,1713333044531,-500.0,0.00027397,2]
[322803420,1713333044540,-500.0,0.00027397,2]
[322803421,1713333044550,-500.0,0.00027397,2]
[322803422,1713333044559,-500.0,0.00027397,2]
[322803423,1713333044569,-500.0,0.00027397,2]
[322803424,1713333044578,-158.870567,0.00054794,7]
[322803425,1713333044588,-500.0,0.00054794,120]
[322803426,1713333044597,-5797.49973264,0.00065753,120]
[322803427,1713333044609,-500.0,0.00065753,120]
[322803428,1713333044618,-500.0,0.00065753,120]
[322803429,1713333044628,-666.05,0.00065753,120]
[322803430,1713333044638,-500.0,0.00065753,120]
[322803431,1713333044648,-500.0,0.00065753,60]
[322803432,1713333044657,-496.91159978,0.00065753,120]
[322803433,1713333044667,-500.0,0.00065753,120]
[322803434,1713333044677,-510.59397441,0.00065753,120]
[322803435,1713333044686,-500.0,0.00065753,120]
[322803436,1713333044695,-500.0,0.00065753,120]
[322803437,1713333044705,-499.56705813,0.00065753,120]
[322803438,1713333044714,-489.01223818,0.00065753,120]
[322803439,1713333044723,-500.0,0.00065753,120]
[322803440,1713333044733,-5589.65,0.00065753,120]
[322803441,1713333044741,-518.71813374,0.00065753,120]
[322803442,1713333044751,-505.48090445,0.00065753,120]
[322803443,1713333044760,-500.0,0.00065753,120]
[322803444,1713333044769,-3817.42,0.00065753,120]
[322803445,1713333044779,-500.0,0.00065753,120]
[322803446,1713333044788,-500.0,0.00065753,120]
[322803447,1713333044796,-500.0,0.00065753,120]
[322803448,1713333044806,-502.61355141,0.00065753,120]
[322803449,1713333044815,-816.55,0.00065753,120]
[322803450,1713333044825,-500.0,0.00065753,120]
[322803451,1713333044834,-500.0,0.00065753,120]
[322803452,1713333044844,-500.0,0.00065753,120]
[322803453,1713333044853,-500.0,0.00065753,120]
[322803454,1713333044863,-500.0,0.00065753,120]
[322803455,1713333044872,-500.0,0.00065753,120]
[322803456,1713333044883,-500.0,0.00065753,120]
[322803457,1713333044892,-500.0,0.00065753,120]
[322803458,1713333044901,-500.0,0.00065753,120]
[322803459,1713333044910,-811.29,0.00065753,120]
[322803460,1713333044919,-151.0,0.00065753,120]
[322803461,1713333044928,-1224.79,0.00065753,120]
[322803462,1713333044938,-500.0,0.00065753,120]
[322803463,1713333044947,-164.0,0.00067,120]
[322803464,1713333044956,-164.0,0.00067055,120]
[322803465,1713333044966,-154.8889487,0.00067094,120]
[322803466,1713333044975,-1000.0,0.00067123,120]
[322803467,1713333044984,-492.0,0.000677,60]
[322803468,1713333044993,-254.817243,0.00067772,2]
[322803469,1713333045003,-1000.0,0.00068356,120]
[322803470,1713333045013,-500.0,0.00068493,120]
[322803471,1713333045022,-3000.0,0.00069,120]
[322803472,1713333045032,-3000.0,0.0006901,120]
[322803473,1713333045041,-3000.0,0.0006902,120]
[322803474,1713333045051,-3000.0,0.0006903,120]
[322803475,1713333045060,-4133.982526,0.0006904,120]
[322803476,1713333045069,-177.0,0.000699,30]
[322803477,1713333045079,-500.0,0.00069995,120]
[322803478,1713333045088,-500.0,0.00069997,120]
[322803479,1713333045099,-268.82545664,0.00069998,7]
[322803480,1713333045108,-32336.83551893,0.00069998,7]
[322803481,1713333045118,-500.0,0.00069998,120]
[322803482,1713333045131,-500.0,0.00069999,120]
[322803483,1713333045140,-407.14169517,0.00069999,120]
[322803484,1713333045150,-500.0,0.00069999,120]
[322803485,1713333045159,-384.55293441,0.00069999,120]
[322803486,1713333045168,-500.0,0.00069999,120]
[322803487,1713333045177,-500.0,0.00069999,120]
[322803488,1713333045187,-261.59464005,0.00069999,120]
[322803489,1713333045197,-500.0,0.00069999,120]
[322803490,1713333045206,-500.0,0.00069999,120]
[322803491,1713333045216,-500.0,0.00069999,120]
[322803492,1713333045225,-500.0,0.00069999,120]
[322803493,1713333045235,-500.0,0.00069999,120]
[322803494,1713333045245,-500.0,0.00069999,120]
[322803495,1713333045254,-500.0,0.00069999,120]
[322803496,1713333045263,-500.0,0.00069999,120]
[322803497,1713333045280,-500.0,0.00069999,120]
[322803498,1713333045296,-154.08556929,0.00069999,120]
[322803499,1713333045311,-500.0,0.00069999,120]
[322803500,1713333045322,-500.0,0.00069999,120]
[322803501,1713333045337,-500.0,0.00069999,120]
[322803502,1713333045350,-155.37410342,0.00069999,7]
[322803503,1713333045365,-625.12,0.00069999,120]
[322803504,1713333045381,-625.12,0.00069999,120]
[322803505,1713333045396,-625.12,0.00069999,120]
[322803506,1713333045408,-625.12,0.00069999,120]
[322803507,1713333045420,-625.12,0.00069999,120]
[322803508,1713333045434,-888.587281,0.00069999,120]
[322803509,1713333045448,-888.587281,0.00069999,120]
[322803510,1713333045460,-796.910787,0.00069999,120]
[322803511,1713333045473,-1000.733791,0.00069999,120]
[322803512,1713333045487,-500.0,0.00069999,120]
[322803513,1713333045498,-796.910787,0.00069999,120]
[322803514,1713333045512,-541.79929284,0.00069999,120]
[322803515,1713333045525,-1000.733791,0.00069999,120]
[322803516,1713333045538,-625.12,0.00069999,120]
[322803517,1713333045551,-275602.66289855,0.0007,120]
[322803518,1713333045564,-1304.98598485,0.0007,7]
[322803519,1713333045577,-132833.10080839,0.0007,120]
[322803520,1713333045592,-6233.4227597,0.0007,60]
[322803521,1713333045607,-39573.33673196,0.0007,120]
[322803522,1713333045621,-246.626067,0.0007,120]
[322803523,1713333045638,-246.626067,0.0007,120]
[322803524,1713333045652,-151.0,0.0007,120]
[322803525,1713333045664,-151.0,0.0007,120]
[322803526,1713333045674,-151.0,0.0007,120]
[322803527,1713333045687,-3302.301536,0.0007,14]
[322803528,1713333045699,-3302.301536,0.0007,14]
[322803529,1713333045711,-888.587281,0.0007,120]
[322803530,1713333045724,-888.587281,0.0007,120]
[322803531,1713333045736,-796.910787,0.0007,120]
[322803532,1713333045746,-1000.733791,0.0007,120]
[322803533,1713333045757,-796.910787,0.0007,120]
[322803534,1713333045768,-1000.733791,0.0007,120]
[322803536,1713333045779,-172.992695,0.0007,120]
[322803538,1713333045791,-172.992695,0.0007,120]
[322803539,1713333045802,-7519.535238,0.0007,120]
[322803540,1713333045813,-7519.535238,0.0007,120]
[322803541,1713333045824,-151.0,0.0007,120]
[322803542,1713333045836,-198.583783,0.0007,120]
[322803543,1713333045848,-1762.426907,0.0007,120]
[322803544,1713333045859,-2066.852675,0.0007,120]
[322803545,1713333045870,-1762.426907,0.0007,120]
[322803546,1713333045882,-2066.852675,0.0007,120]
[322803547,1713333045893,-501.7492,0.0007,30]
[322803548,1713333045904,-466.384024,0.0007,120]
[322803549,1713333045916,-466.384024,0.0007,120]
[322803550,1713333045928,-151.0,0.0007,120]
[322803551,1713333045938,-151.0,0.0007,120]
[322803552,1713333045950,-151.0,0.0007,120]
[322803553,1713333045961,-151.0,0.0007,120]
[322803554,1713333045972,-164.0,0.0007012,120]
[322803555,1713333045983,-625.12,0.00070712,120]
[322803556,1713333045994,-625.12,0.00070712,120]
[322803557,1713333046005,-625.12,0.00070712,120]
[322803558,1713333046016,-500.0,0.00071232,120]
[322803559,1713333046028,-502.33063945,0.00071232,120]
[322803560,1713333046039,-500.0,0.00071232,120]
[322803561,1713333046050,-500.0,0.00071232,120]
[322803562,1713333046061,-500.0,0.00071232,120]
[322803563,1713333046073,-500.0,0.00071232,120]
[322803564,1713333046082,-500.0,0.00071232,120]
[322803565,1713333046091,-500.0,0.00071232,120]
[322803566,1713333046101,-500.0,0.00071232,120]
[322803567,1713333046111,-500.0,0.00071232,120]
[322803568,1713333046120,-500.0,0.00071232,120]
[322803569,1713333046131,-7591.79,0.00071232,120]
[322803570,1713333046143,-228.83119818,0.00071232,120]
[322803571,1713333046153,-500.0,0.00071232,120]
[322803572,1713333046162,-500.0,0.00071232,120]
[322803573,1713333046171,-500.0,0.00071232,120]
[322803574,1713333046181,-500.0,0.00071232,120]
[322803575,1713333046190,-500.0,0.00071232,120]
[322803576,1713333046199,-500.0,0.00071232,120]
[322803577,1713333046208,-500.0,0.00071232,120]
[322803578,1713333046218,-500.0,0.00071232,120]
[322803579,1713333046227,-505.40427964,0.00071232,120]
[322803580,1713333046236,-500.0,0.00071232,120]
[322803581,1713333046245,-500.0,0.00071232,120]
[322803582,1713333046255,-500.0,0.00071232,120]
[322803583,1713333046265,-500.0,0.00071232,120]
[322803584,1713333046275,-500.0,0.00071232,120]
[322803585,1713333046285,-500.0,0.00071232,120]
[322803586,1713333046294,-500.0,0.00071232,120]
[322803587,1713333046304,-500.0,0.00071232,120]
[322803588,1713333046314,-500.0,0.00071232,120]
[322803589,1713333046323,-500.0,0.00071232,120]
[322803590,1713333046333,-508.18248448,0.00071232,120]
[322803591,1713333046510,-501.20520564,0.00071232,120]
[322803592,1713333046522,-151.0,0.00071232,120]
[322803593,1713333046532,-151.0,0.00071232,120]
[322803594,1713333046542,-501.55790209,0.00071232,120]
[322803595,1713333046552,-151.0,0.00071232,120]
[322803596,1713333046561,-500.0,0.00071232,120]
[322803597,1713333046570,-500.0,0.00071232,120]
[322803598,1713333046579,-3302.301536,0.00071232,14]
[322803599,1713333046590,-3302.301536,0.00071232,14]
[322803600,1713333046605,-500.0,0.00071232,120]
[322803601,1713333046614,-308.67104345,0.00071232,120]
[322803602,1713333046624,-500.0,0.00071232,120]
[322803603,1713333046636,-888.587281,0.00071232,120]
[322803604,1713333046646,-527.07710566,0.00071232,120]
[322803605,1713333046655,-888.587281,0.00071232,120]
[322803606,1713333046664,-500.0,0.00071232,120]
[322803607,1713333046675,-500.0,0.00071232,120]
[322803608,1713333046685,-500.0,0.00071232,120]
[322803609,1713333046696,-579.09,0.00071232,120]
[322803610,1713333046705,-500.0,0.00071232,120]
[322803611,1713333046715,-500.0,0.00071232,120]
[322803612,1713333046724,-500.0,0.00071232,120]
[322803613,1713333046734,-500.0,0.00071232,120]
[322803614,1713333046744,-500.0,0.00071232,120]
[322803615,1713333046754,-796.910787,0.00071232,120]
[322803616,1713333046764,-1000.733791,0.00071232,120]
[322803617,1713333046773,-796.910787,0.00071232,120]
[322803618,1713333046782,-1000.733791,0.00071232,120]
[322803619,1713333046792,-502.63850427,0.00071232,120]
[322803620,1713333046801,-500.0,0.00071232,120]
[322803621,1713333046810,-1749.94,0.00071232,120]
[322803622,1713333046819,-500.0,0.00071232,120]
[322803623,1713333046828,-500.0,0.00071232,120]
[322803624,1713333046838,-500.0,0.00071232,120]
[322803625,1713333046847,-500.0,0.00071232,120]
[322803626,1713333046856,-500.0,0.00071232,120]
[322803627,1713333046866,-500.0,0.00071232,120]
[322803628,1713333046875,-508.90555875,0.00071232,120]
[322803629,1713333046886,-505.04068357,0.00071232,120]
[322803630,1713333046895,-506.44626288,0.00071232,120]
[322803631,1713333046904,-1000.0,0.00071232,120]
[322803632,1713333046912,-500.0,0.00071232,120]
[322803633,1713333046921,-500.0,0.00071232,120]
[322803634,1713333046930,-503.60892901,0.00071232,120]
[322803635,1713333046940,-172.992695,0.00071232,120]
[322803636,1713333046949,-500.0,0.00071232,120]
[322803637,1713333046958,-172.992695,0.00071232,120]
[322803638,1713333046967,-500.0,0.00071232,120]
[322803639,1713333046978,-504.03559648,0.00071232,120]
[322803640,1713333046988,-500.0,0.00071232,120]
[322803641,1713333046998,-500.0,0.00071232,120]
[322803642,1713333047008,-511.25206593,0.00071232,120]
[322803643,1713333047017,-27989.2,0.00071232,120]
[322803644,1713333047027,-500.0,0.00071232,120]
[322803645,1713333047036,-583.93,0.00071232,120]
[322803646,1713333047045,-500.0,0.00071232,120]
[322803647,1713333047054,-500.0,0.00071232,120]
[322803648,1713333047063,-7519.535238,0.00071232,120]
[322803649,1713333047073,-500.0,0.00071232,120]
[322803650,1713333047083,-7519.535238,0.00071232,120]
[322803651,1713333047094,-204.55905913,0.00071232,120]
[322803652,1713333047103,-151.0,0.00071232,120]
[322803653,1713333047112,-500.0,0.00071232,7]
[322803654,1713333047121,-21498.73,0.00071232,120]
[322803655,1713333047132,-500.0,0.00071232,120]
[322803656,1713333047141,-500.0,0.00071232,120]
[322803657,1713333047151,-666.05,0.00071232,120]
[322803658,1713333047160,-500.0,0.00071232,120]
[322803659,1713333047169,-1762.426907,0.00071232,120]
[322803660,1713333047178,-500.0,0.00071232,60]
[322803661,1713333047186,-2066.852675,0.00071232,120]
[322803662,1713333047196,-1762.426907,0.00071232,120]
[322803663,1713333047205,-2066.852675,0.00071232,120]
[322803664,1713333047215,-500.0,0.00071232,120]
[322803665,1713333047224,-500.0,0.00071232,120]
[322803666,1713333047234,-621.27576234,0.00071232,120]
[322803667,1713333047243,-500.0,0.00071232,120]
[322803668,1713333047252,-5589.65,0.00071232,120]
[322803669,1713333047261,-500.0,0.00071232,120]
[322803670,1713333047271,-3817.42,0.00071232,120]
[322803671,1713333047281,-500.0,0.00071232,120]
[322803672,1713333047291,-500.0,0.00071232,120]
[322803673,1713333047300,-466.384024,0.00071232,120]
[322803674,1713333047309,-500.0,0.00071232,120]
[322803675,1713333047320,-466.384024,0.00071232,120]
[322803676,1713333047330,-151.0,0.00071232,120]
[322803677,1713333047340,-816.55,0.00071232,120]
[322803678,1713333047349,-500.0,0.00071232,120]
[322803679,1713333047358,-151.0,0.00071232,120]
[322803680,1713333047369,-500.0,0.00071232,120]
[322803681,1713333047380,-500.0,0.00071232,120]
[322803682,1713333047390,-500.0,0.00071232,120]
[322803683,1713333047399,-500.0,0.00071232,120]
[322803684,1713333047409,-151.0,0.00071232,120]
[322803685,1713333047419,-600.81849866,0.00071232,120]
[322803686,1713333047429,-500.0,0.00071232,120]
[322803687,1713333047438,-500.0,0.00071232,120]
[322803688,1713333047447,-500.0,0.00071232,120]
[322803689,1713333047457,-811.29,0.00071232,120]
[322803690,1713333047466,-151.0,0.00071232,120]
[322803691,1713333047475,-1224.79,0.00071232,120]
[322803692,1713333047485,-277.86235418,0.00071232,120]
[322803693,1713333047495,-177.928811,0.00071233,120]
[322803694,1713333047504,-157.593849,0.00071233,120]
[322803695,1713333047513,-625.12,0.00071712,120]
[322803696,1713333047524,-625.12,0.00071712,120]
[322803697,1713333047534,-625.12,0.00071712,120]
[322803698,1713333047544,-625.12,0.00071712,120]
[322803699,1713333047553,-625.3069026,0.00072712,120]
[322803700,1713333047562,-625.12,0.00072712,120]
[322803701,1713333047571,-625.12,0.00072712,120]
[322803702,1713333047580,-625.12,0.00072712,120]
[322803703,1713333047589,-254.817243,0.0007354,120]
[322803704,1713333047601,-164.0,0.00073626,120]
[322803705,1713333047610,-1000.0,0.00074,120]
[322803706,1713333047619,-500.0,0.00076712,120]
[322803707,1713333047628,-500.0,0.00076712,120]
[322803708,1713333047639,-500.0,0.00076712,120]
[322803709,1713333047648,-500.0,0.00076712,120]
[322803710,1713333047657,-500.0,0.00076712,120]
[322803711,1713333047666,-500.0,0.00076712,120]
[322803712,1713333047676,-598.67369605,0.00076712,120]
[322803713,1713333047687,-500.0,0.00076712,120]
[322803714,1713333047698,-500.0,0.00076712,120]
[322803715,1713333047709,-500.0,0.00076712,120]
[322803716,1713333047719,-504.25676664,0.00076712,120]
[322803717,1713333047730,-7591.79,0.00076712,120]
[322803718,1713333047741,-500.0,0.00076712,120]
[322803719,1713333047752,-599.82400889,0.00076712,120]
[322803720,1713333047763,-164.00977262,0.00076712,120]
[322803721,1713333047775,-500.0,0.00076712,120]
[322803722,1713333047786,-500.0,0.00076712,120]
[322803723,1713333047795,-500.0,0.00076712,120]
[322803724,1713333047806,-500.0,0.00076712,120]
[322803725,1713333047815,-500.0,0.00076712,120]
[322803726,1713333047824,-345.30926048,0.00076712,120]
[322803727,1713333047833,-500.0,0.00076712,120]
[322803728,1713333047843,-500.0,0.00076712,120]
[322803729,1713333047852,-500.0,0.00076712,120]
[322803730,1713333047861,-500.0,0.00076712,120]
[322803731,1713333047871,-500.0,0.00076712,120]
[322803732,1713333047880,-500.0,0.00076712,120]
[322803733,1713333047890,-500.0,0.00076712,120]
[322803734,1713333047899,-500.0,0.00076712,120]
[322803735,1713333047908,-500.0,0.00076712,120]
[322803736,1713333047917,-500.0,0.00076712,120]
[322803737,1713333047927,-500.0,0.00076712,120]
[322803738,1713333047936,-503.03917365,0.00076712,120]
[322803739,1713333047945,-500.0,0.00076712,120]
[322803740,1713333047954,-246.626067,0.00076712,120]
[322803741,1713333047963,-246.626067,0.00076712,120]
[322803742,1713333047973,-500.0,0.00076712,120]
[322803743,1713333047982,-500.0,0.00076712,120]
[322803744,1713333047991,-516.98834852,0.00076712,120]
[322803745,1713333048000,-500.0,0.00076712,120]
[322803746,1713333048008,-500.0,0.00076712,120]
[322803747,1713333048017,-500.0,0.00076712,120]
[322803748,1713333048027,-500.0,0.00076712,120]
[322803749,1713333048036,-573.52001131,0.00076712,120]
[322803750,1713333048045,-500.0,0.00076712,120]
[322803751,1713333048054,-579.09,0.00076712,120]
[322803752,1713333048063,-500.0,0.00076712,120]
[322803753,1713333048072,-500.0,0.00076712,120]
[322803754,1713333048081,-500.0,0.00076712,120]
[322803755,1713333048090,-500.0,0.00076712,120]
[322803756,1713333048100,-276.8427483,0.00076712,120]
[322803757,1713333048109,-500.0,0.00076712,120]
[322803758,1713333048118,-1749.94,0.00076712,120]
[322803759,1713333048127,-500.0,0.00076712,120]
[322803760,1713333048136,-500.0,0.00076712,120]
[322803761,1713333048145,-500.0,0.00076712,120]
[322803762,1713333048153,-500.0,0.00076712,120]
[322803763,1713333048162,-500.0,0.00076712,120]
[322803764,1713333048173,-500.0,0.00076712,120]
[322803765,1713333048183,-1000.0,0.00076712,120]
[322803766,1713333048194,-500.0,0.00076712,120]
[322803767,1713333048204,-500.0,0.00076712,120]
[322803768,1713333048213,-500.0,0.00076712,120]
[322803769,1713333048222,-500.0,0.00076712,120]
[322803770,1713333048232,-500.0,0.00076712,120]
[322803771,1713333048241,-500.0,0.00076712,120]
[322803772,1713333048250,-27989.2,0.00076712,120]
[322803773,1713333048259,-500.0,0.00076712,120]
[322803774,1713333048269,-583.93,0.00076712,120]
[322803775,1713333048279,-580.64981976,0.00076712,120]
[322803776,1713333048288,-500.0,0.00076712,120]
[322803777,1713333048297,-500.0,0.00076712,120]
[322803778,1713333048306,-500.0,0.00076712,7]
[322803779,1713333048316,-21498.73,0.00076712,120]
[322803780,1713333048325,-500.0,0.00076712,120]
[322803781,1713333048335,-500.0,0.00076712,120]
[322803782,1713333048345,-666.05,0.00076712,120]
[322803783,1713333048354,-505.47379295,0.00076712,120]
[322803784,1713333048363,-500.0,0.00076712,60]
[322803785,1713333048373,-500.0,0.00076712,120]
[322803786,1713333048382,-500.0,0.00076712,120]
[322803787,1713333048392,-500.0,0.00076712,120]
[322803788,1713333048402,-5589.65,0.00076712,120]
[322803790,1713333048411,-500.0,0.00076712,120]
[322803791,1713333048421,-3817.42,0.00076712,120]
[322803792,1713333048430,-500.0,0.00076712,120]
[322803793,1713333048440,-500.0,0.00076712,120]
[322803794,1713333048450,-500.0,0.00076712,120]
[322803795,1713333048460,-816.55,0.00076712,120]